[Event "*** Titled Tuesday 3|2 Blitz"]
[Site "Chess.com"]
[Date "2017.05.02"]
[Round "6"]
[White "penguingm1"]
[Black "Alexander_Moskalenko"]
[Result "1/2-1/2"]
[WhiteElo "2593"]
[BlackElo "2676"]
[TimeControl "180+2"]
[EndTime "14:22:37 PDT"]
[Termination "Game drawn by repetition"]

1. d4 {[%clk 0:03:02]} 1... d5 {[%clk 0:03:00.6]} 2. c4 {[%clk 0:03:01]} 2... e6
{[%clk 0:03:01.9]} 3. Nc3 {[%clk 0:03:00.8]} 3... Nf6 {[%clk 0:03:03.3]} 4. cxd5
{[%clk 0:03:01.5]} 4... exd5 {[%clk 0:03:03.9]} 5. Bg5 {[%clk 0:03:02.3]} 5...
c6 {[%clk 0:03:05.3]} 6. e3 {[%clk 0:03:03.3]} 6... Be7 {[%clk 0:03:04.4]} 7.
Bd3 {[%clk 0:03:04.3]} 7... Nbd7 {[%clk 0:03:04.9]} 8. Qc2 {[%clk 0:03:05.5]}
8... Nh5 {[%clk 0:03:05.6]} 9. Bxe7 {[%clk 0:03:06.1]} 9... Qxe7 {[%clk
0:03:07.5]} 10. Nge2 {[%clk 0:03:07.8]} 10... Nb6 {[%clk 0:03:01.9]} 11. O-O-O
{[%clk 0:03:07.9]} 11... g6 {[%clk 0:03:03.4]} 12. Kb1 {[%clk 0:03:08.9]} 12...
Be6 {[%clk 0:03:02.8]} 13. Rc1 {[%clk 0:03:09.8]} 13... Ng7 {[%clk 0:02:59.1]}
14. f3 {[%clk 0:03:09.6]} 14... O-O-O {[%clk 0:02:55.5]} 15. e4 {[%clk
0:03:01.7]} 15... Kb8 {[%clk 0:02:56.5]} 16. e5 {[%clk 0:02:57.5]} 16... Bf5
{[%clk 0:02:55]} 17. Bxf5 {[%clk 0:02:44.9]} 17... Nxf5 {[%clk 0:02:55.6]} 18.
g4 {[%clk 0:02:46]} 18... Ng7 {[%clk 0:02:50.8]} 19. Na4 {[%clk 0:02:25.9]}
19... Nxa4 {[%clk 0:02:50]} 20. Qxa4 {[%clk 0:02:26.7]} 20... f5 {[%clk
0:02:48.6]} 21. Rc3 {[%clk 0:02:24.4]} 21... fxg4 {[%clk 0:02:46.9]} 22. fxg4
{[%clk 0:02:24.4]} 22... Rhf8 {[%clk 0:02:43.3]} 23. Rb3 {[%clk 0:02:22.1]}
23... Rf2 {[%clk 0:02:31.9]} 24. Nc3 {[%clk 0:02:21.6]} 24... Ne6 {[%clk
0:02:25.1]} 25. Rd1 {[%clk 0:02:01]} 25... Ka8 {[%clk 0:02:04.8]} 26. h3 {[%clk
0:01:57.5]} 26... Rdf8 {[%clk 0:02:03.2]} 27. Ra3 {[%clk 0:01:26.3]} 27... a6
{[%clk 0:02:04.1]} 28. Rb3 {[%clk 0:01:21.7]} 28... Rf1 {[%clk 0:01:56]} 29. a3
{[%clk 0:01:17.1]} 29... Rxd1+ {[%clk 0:01:41.1]} 30. Nxd1 {[%clk 0:01:19]}
30... Rf4 {[%clk 0:01:33.4]} 31. Rb4 {[%clk 0:01:11.3]} 31... Ng5 {[%clk
0:01:10.2]} 32. Nc3 {[%clk 0:00:51.1]} 32... Ne4 {[%clk 0:00:46.2]} 33. Qc2
{[%clk 0:00:18.1]} 33... Rf1+ {[%clk 0:00:40.9]} 34. Ka2 {[%clk 0:00:18.4]}
34... Rf2 {[%clk 0:00:41.6]} 35. Qc1 {[%clk 0:00:17.5]} 35... Qf7 {[%clk
0:00:30.3]} 36. Na4 {[%clk 0:00:16.9]} 36... Qf8 {[%clk 0:00:21.1]} 37. Qd1
{[%clk 0:00:11.1]} 37... Rf1 {[%clk 0:00:21.4]} 38. Qb3 {[%clk 0:00:11.3]} 38...
Nd2 {[%clk 0:00:18.5]} 39. Nb6+ {[%clk 0:00:10.2]} 39... Ka7 {[%clk 0:00:19.9]}
40. Qc2 {[%clk 0:00:11.7]} 40... Ne4 {[%clk 0:00:16.6]} 41. Qb3 {[%clk
0:00:10.1]} 41... Rf3 {[%clk 0:00:16.6]} 42. Qc2 {[%clk 0:00:07.9]} 42... Qe8
{[%clk 0:00:14.6]} 43. Na4 {[%clk 0:00:07.3]} 43... h5 {[%clk 0:00:13.1]} 44.
Nc5 {[%clk 0:00:08.2]} 44... Nxc5 {[%clk 0:00:10.3]} 45. Qxc5+ {[%clk
0:00:10.1]} 45... Ka8 {[%clk 0:00:11.9]} 46. Qb6 {[%clk 0:00:07.9]} 46... Qe7
{[%clk 0:00:12.4]} 47. gxh5 {[%clk 0:00:08.4]} 47... gxh5 {[%clk 0:00:14.2]} 48.
Rb3 {[%clk 0:00:06.8]} 48... Rxb3 {[%clk 0:00:11.5]} 49. Qxb3 {[%clk 0:00:08.7]}
49... Qe6 {[%clk 0:00:12.1]} 50. Qf3 {[%clk 0:00:09.5]} 50... Ka7 {[%clk
0:00:12.7]} 51. Qc3 {[%clk 0:00:09.6]} 51... h4 {[%clk 0:00:13]} 52. Qc5+ {[%clk
0:00:09.2]} 52... Ka8 {[%clk 0:00:14.6]} 53. Qf8+ {[%clk 0:00:07]} 53... Ka7
{[%clk 0:00:15.9]} 54. Qf6 {[%clk 0:00:08.5]} 54... Qxh3 {[%clk 0:00:17]} 55. e6
{[%clk 0:00:09.9]} 55... Qd3 {[%clk 0:00:15.4]} 56. Qxh4 {[%clk 0:00:10]} 56...
Qc4+ {[%clk 0:00:15.2]} 57. Kb1 {[%clk 0:00:11.4]} 57... Qd3+ {[%clk 0:00:16.1]}
58. Kc1 {[%clk 0:00:12.3]} 58... Qe3+ {[%clk 0:00:17.2]} 59. Kc2 {[%clk
0:00:12.6]} 59... Qxe6 {[%clk 0:00:19.1]} 60. Qf4 {[%clk 0:00:11.7]} 60... Qe2+
{[%clk 0:00:19]} 61. Kc1 {[%clk 0:00:09.2]} 61... a5 {[%clk 0:00:19.4]} 62. Qf6
{[%clk 0:00:06.9]} 62... Ka6 {[%clk 0:00:20.2]} 63. Kb1 {[%clk 0:00:08.1]} 63...
Kb5 {[%clk 0:00:20.1]} 64. Ka2 {[%clk 0:00:07.8]} 64... Qc4+ {[%clk 0:00:20.7]}
65. Ka1 {[%clk 0:00:08.7]} 65... Ka4 {[%clk 0:00:22.1]} 66. Kb1 {[%clk
0:00:07.4]} 66... Qd3+ {[%clk 0:00:21]} 67. Ka2 {[%clk 0:00:07.9]} 67... Qb3+
{[%clk 0:00:20.9]} 68. Kb1 {[%clk 0:00:07.9]} 68... Qd1+ {[%clk 0:00:22]} 69.
Ka2 {[%clk 0:00:09]} 69... Qd3 {[%clk 0:00:22]} 70. Qg7 {[%clk 0:00:07.8]} 70...
Qc4+ {[%clk 0:00:20.1]} 71. Kb1 {[%clk 0:00:09.1]} 71... b6 {[%clk 0:00:19.1]}
72. Qf6 {[%clk 0:00:09.2]} 72... Kb5 {[%clk 0:00:15.8]} 73. Qe5 {[%clk 0:00:07]}
73... Qd3+ {[%clk 0:00:16.8]} 74. Ka2 {[%clk 0:00:08.2]} 74... Kc4 {[%clk
0:00:17.2]} 75. Qf6 {[%clk 0:00:06.7]} 75... Qb3+ {[%clk 0:00:16.8]} 76. Kb1
{[%clk 0:00:06.7]} 76... Kb5 {[%clk 0:00:16.3]} 77. Qg7 {[%clk 0:00:05.5]} 77...
Qd1+ {[%clk 0:00:15.9]} 78. Ka2 {[%clk 0:00:06.8]} 78... Qf3 {[%clk 0:00:16.4]}
79. Qg6 {[%clk 0:00:06.5]} 79... Qe4 {[%clk 0:00:15.9]} 80. Qf6 {[%clk
0:00:07.3]} 80... a4 {[%clk 0:00:14.1]} 81. Ka1 {[%clk 0:00:05.9]} 81... Qe1+
{[%clk 0:00:14.7]} 82. Ka2 {[%clk 0:00:07.3]} 82... Qe2 {[%clk 0:00:15.6]} 83.
Ka1 {[%clk 0:00:06.7]} 83... Qe8 {[%clk 0:00:13.6]} 84. Qf2 {[%clk 0:00:02.9]}
84... Qe4 {[%clk 0:00:10.4]} 85. Qd2 {[%clk 0:00:04.1]} 85... Ka6 {[%clk
0:00:10.5]} 86. Qc3 {[%clk 0:00:04.8]} 86... Kb7 {[%clk 0:00:12]} 87. Qb4 {[%clk
0:00:05.8]} 87... c5 {[%clk 0:00:08.5]} 88. Qxa4 {[%clk 0:00:04.3]} 88... Qxd4
{[%clk 0:00:09.3]} 89. Qxd4 {[%clk 0:00:03.6]} 89... cxd4 {[%clk 0:00:10.2]} 90.
Kb1 {[%clk 0:00:05.3]} 90... Kc6 {[%clk 0:00:11.7]} 91. Kc2 {[%clk 0:00:06.2]}
91... Kb5 {[%clk 0:00:12]} 92. b3 {[%clk 0:00:05.2]} 92... Kc6 {[%clk
0:00:10.2]} 93. Kd2 {[%clk 0:00:05]} 93... Kd6 {[%clk 0:00:09.7]} 94. Ke2 {[%clk
0:00:05.8]} 94... Kc6 {[%clk 0:00:11.1]} 95. Kd2 {[%clk 0:00:06.3]} 95... Kd6
{[%clk 0:00:12.2]} 96. Kd3 {[%clk 0:00:05.5]} 96... Kc5 {[%clk 0:00:13.3]} 97.
Kc2 {[%clk 0:00:03.5]} 97... Kc6 {[%clk 0:00:14.1]} 98. Kd2 {[%clk 0:00:04.8]}
98... Kd6 {[%clk 0:00:15.5]} 99. Kd3 {[%clk 0:00:06]} 99... Kc5 {[%clk
0:00:16.7]} 100. Kc2 {[%clk 0:00:03.4]} 100... Kd6 {[%clk 0:00:16.9]} 101. Kd2
{[%clk 0:00:02]} 101... Kc6 {[%clk 0:00:18.1]} 102. Kd3 {[%clk 0:00:03.9]}
102... Kc5 {[%clk 0:00:19.1]} 103. Kc2 {[%clk 0:00:05.6]} 103... Kc6 {[%clk
0:00:20.2]} 104. Kd2 {[%clk 0:00:06.8]} 104... Kd6 {[%clk 0:00:21.6]} 105. Kd3
{[%clk 0:00:07.8]} 1/2-1/2

[Event "*** Titled Tuesday 3|2 Blitz"]
[Site "Chess.com"]
[Date "2017.05.02"]
[Round "7"]
[White "djogrodek1"]
[Black "vpantev"]
[Result "0-1"]
[WhiteElo "2414"]
[BlackElo "2470"]
[TimeControl "180+2"]
[EndTime "14:28:03 PDT"]
[Termination "vpantev won by resignation"]

1. e4 {[%clk 0:03:01.9]} 1... c6 {[%clk 0:02:58.5]} 2. d4 {[%clk 0:03:02.7]}
2... d5 {[%clk 0:02:59.9]} 3. Nd2 {[%clk 0:03:04.3]} 3... dxe4 {[%clk 0:03:01]}
4. Nxe4 {[%clk 0:03:06.2]} 4... Nf6 {[%clk 0:03:02.6]} 5. Nxf6+ {[%clk
0:03:07.5]} 5... exf6 {[%clk 0:03:03.9]} 6. c3 {[%clk 0:03:08.9]} 6... Bd6
{[%clk 0:03:05.3]} 7. Bd3 {[%clk 0:03:10.5]} 7... O-O {[%clk 0:03:06.9]} 8. Qc2
{[%clk 0:03:12.4]} 8... Re8+ {[%clk 0:03:08.5]} 9. Ne2 {[%clk 0:03:14]} 9... Kh8
{[%clk 0:03:10.1]} 10. O-O {[%clk 0:03:13.8]} 10... Qc7 {[%clk 0:03:10.6]} 11.
h3 {[%clk 0:03:15.2]} 11... Nd7 {[%clk 0:03:11.3]} 12. Be3 {[%clk 0:03:16.2]}
12... Nf8 {[%clk 0:03:12]} 13. c4 {[%clk 0:03:17.4]} 13... Be6 {[%clk
0:03:12.2]} 14. Rad1 {[%clk 0:03:12.7]} 14... Ng6 {[%clk 0:03:12.4]} 15. b3
{[%clk 0:03:13.2]} 15... Qd7 {[%clk 0:03:12.3]} 16. Be4 {[%clk 0:02:55.4]} 16...
Bxh3 {[%clk 0:03:06.5]} 17. gxh3 {[%clk 0:02:56.3]} 17... Qxh3 {[%clk
0:03:07.2]} 18. Rfe1 {[%clk 0:02:10.8]} 18... Bh2+ {[%clk 0:03:05.7]} 19. Kh1
{[%clk 0:02:12.7]} 19... Bf4+ {[%clk 0:03:01.4]} 20. Kg1 {[%clk 0:02:14.6]}
20... Bxe3 {[%clk 0:03:01.4]} 0-1

[Event "*** Titled Tuesday 3|2 Blitz"]
[Site "Chess.com"]
[Date "2017.05.02"]
[Round "7"]
[White "SCIM"]
[Black "JusticeBot"]
[Result "1-0"]
[WhiteElo "2394"]
[BlackElo "2478"]
[TimeControl "180+2"]
[EndTime "14:28:53 PDT"]
[Termination "SCIM won by resignation"]

1. d4 {[%clk 0:03:00.9]} 1... Nf6 {[%clk 0:03:01.1]} 2. c4 {[%clk 0:03:01.3]}
2... g6 {[%clk 0:03:02.7]} 3. Nc3 {[%clk 0:03:01.9]} 3... Bg7 {[%clk 0:03:04.6]}
4. e4 {[%clk 0:03:02.2]} 4... O-O {[%clk 0:03:06.5]} 5. f3 {[%clk 0:03:03]} 5...
d6 {[%clk 0:03:08]} 6. Be3 {[%clk 0:03:03.9]} 6... e5 {[%clk 0:03:08.8]} 7. d5
{[%clk 0:03:03.6]} 7... a5 {[%clk 0:03:10]} 8. Bd3 {[%clk 0:03:04]} 8... Na6
{[%clk 0:03:11.5]} 9. Nge2 {[%clk 0:03:03.7]} 9... c6 {[%clk 0:02:44.7]} 10. O-O
{[%clk 0:02:59.5]} 10... Nc7 {[%clk 0:02:45.5]} 11. Rc1 {[%clk 0:02:52.9]} 11...
b5 {[%clk 0:02:40.2]} 12. dxc6 {[%clk 0:02:47]} 12... bxc4 {[%clk 0:02:41.5]}
13. Bxc4 {[%clk 0:02:46.5]} 13... Ba6 {[%clk 0:02:24.8]} 14. Bxa6 {[%clk
0:02:43.3]} 14... Rxa6 {[%clk 0:02:26.7]} 15. Nd5 {[%clk 0:02:44]} 15... Qb8
{[%clk 0:02:18.5]} 16. b3 {[%clk 0:02:33.7]} 16... Rd8 {[%clk 0:02:12.5]} 17.
Kh1 {[%clk 0:02:28.6]} 17... Nfe8 {[%clk 0:01:53.5]} 18. Nec3 {[%clk 0:02:19.9]}
18... Rxc6 {[%clk 0:01:52.8]} 19. Ne7+ {[%clk 0:02:19.2]} 1-0

[Event "*** Titled Tuesday 3|2 Blitz"]
[Site "Chess.com"]
[Date "2017.05.02"]
[Round "7"]
[White "Marreuh"]
[Black "Enzy63"]
[Result "0-1"]
[WhiteElo "2081"]
[BlackElo "2043"]
[TimeControl "180+2"]
[EndTime "14:31:52 PDT"]
[Termination "Enzy63 won by checkmate"]

1. e4 {[%clk 0:03:02]} 1... c5 {[%clk 0:03:00.2]} 2. c3 {[%clk 0:03:02.7]} 2...
e6 {[%clk 0:03:00]} 3. d4 {[%clk 0:03:02.5]} 3... d5 {[%clk 0:03:01.5]} 4. e5
{[%clk 0:03:03.6]} 4... Nc6 {[%clk 0:03:02.6]} 5. Nf3 {[%clk 0:03:04.6]} 5...
Bd7 {[%clk 0:03:04]} 6. Be2 {[%clk 0:03:01]} 6... f6 {[%clk 0:03:02.3]} 7. O-O
{[%clk 0:02:51.2]} 7... fxe5 {[%clk 0:03:01.6]} 8. dxe5 {[%clk 0:02:43.5]} 8...
Qc7 {[%clk 0:03:00.5]} 9. Bf4 {[%clk 0:02:43.1]} 9... Nh6 {[%clk 0:02:53.5]} 10.
c4 {[%clk 0:02:34.1]} 10... d4 {[%clk 0:02:52.9]} 11. Nbd2 {[%clk 0:02:34.8]}
11... Nf7 {[%clk 0:02:53]} 12. Kh1 {[%clk 0:02:27.2]} 12... Be7 {[%clk
0:02:27.8]} 13. Re1 {[%clk 0:02:25.6]} 13... g5 {[%clk 0:02:23]} 14. Bg3 {[%clk
0:02:21.7]} 14... O-O-O {[%clk 0:02:12.3]} 15. Bd3 {[%clk 0:02:04.5]} 15... Rdg8
{[%clk 0:02:00.2]} 16. Ne4 {[%clk 0:01:53.1]} 16... h5 {[%clk 0:01:44.9]} 17.
Nf6 {[%clk 0:01:52.3]} 17... Rg7 {[%clk 0:01:08.3]} 18. Nd2 {[%clk 0:01:37.6]}
18... h4 {[%clk 0:01:05.3]} 19. Nh5 {[%clk 0:01:33]} 19... Rgg8 {[%clk
0:00:57.1]} 20. Nf6 {[%clk 0:01:29]} 20... Bxf6 {[%clk 0:00:58.1]} 21. exf6
{[%clk 0:01:29.7]} 21... hxg3 {[%clk 0:00:59.3]} 22. fxg3 {[%clk 0:01:24.5]}
22... Qxg3 {[%clk 0:00:55.5]} 23. Nf3 {[%clk 0:01:25.1]} 23... g4 {[%clk
0:00:52.7]} 24. Kg1 {[%clk 0:01:17.4]} 24... Qd6 {[%clk 0:00:50]} 25. Nd2 {[%clk
0:01:16.2]} 25... Qxh2+ {[%clk 0:00:47]} 26. Kf2 {[%clk 0:01:17.1]} 26... Qf4+
{[%clk 0:00:46.9]} 27. Ke2 {[%clk 0:01:15.7]} 27... Qe3+ {[%clk 0:00:45.8]} 28.
Kf1 {[%clk 0:01:15.8]} 28... Rh1# {[%clk 0:00:43.8]} 0-1

[Event "*** Titled Tuesday 3|2 Blitz"]
[Site "Chess.com"]
[Date "2017.05.02"]
[Round "7"]
[White "DavidForthoffer"]
[Black "Larax"]
[Result "1-0"]
[WhiteElo "2104"]
[BlackElo "1987"]
[TimeControl "180+2"]
[EndTime "14:32:18 PDT"]
[Termination "DavidForthoffer won on time"]

1. d4 {[%clk 0:03:02]} 1... Nf6 {[%clk 0:02:15.2]} 2. c4 {[%clk 0:03:01.5]} 2...
g6 {[%clk 0:02:16.4]} 3. Nc3 {[%clk 0:03:02.5]} 3... d5 {[%clk 0:02:18]} 4. Nf3
{[%clk 0:03:02.5]} 4... Bg7 {[%clk 0:02:18.7]} 5. e3 {[%clk 0:03:03.6]} 5... O-O
{[%clk 0:02:20]} 6. Bd2 {[%clk 0:03:05]} 6... c6 {[%clk 0:02:18.2]} 7. Qb3
{[%clk 0:03:04.1]} 7... b6 {[%clk 0:02:13.2]} 8. Ne5 {[%clk 0:03:02.5]} 8...
Nfd7 {[%clk 0:02:13.3]} 9. Nxd7 {[%clk 0:02:56.5]} 9... Nxd7 {[%clk 0:02:14.8]}
10. cxd5 {[%clk 0:02:57.3]} 10... c5 {[%clk 0:02:16.6]} 11. dxc5 {[%clk
0:02:48.7]} 11... Nxc5 {[%clk 0:02:17.8]} 12. Qc2 {[%clk 0:02:34.6]} 12... Bf5
{[%clk 0:02:02.7]} 13. e4 {[%clk 0:02:35.6]} 13... Bxc3 {[%clk 0:02:01.2]} 14.
exf5 {[%clk 0:02:36]} 14... Bxd2+ {[%clk 0:01:52.4]} 15. Qxd2 {[%clk 0:02:37.9]}
15... Qd6 {[%clk 0:01:51.1]} 16. fxg6 {[%clk 0:02:32.2]} 16... hxg6 {[%clk
0:01:52]} 17. Bc4 {[%clk 0:02:26.4]} 17... Rad8 {[%clk 0:01:30.3]} 18. Rd1
{[%clk 0:02:26.3]} 18... Ne4 {[%clk 0:01:26.3]} 19. Qd4 {[%clk 0:01:56.8]} 19...
Qb4+ {[%clk 0:01:15.7]} 20. Ke2 {[%clk 0:01:57.9]} 20... Nd6 {[%clk 0:01:05.5]}
21. Bb3 {[%clk 0:01:50.9]} 21... Qb5+ {[%clk 0:01:02.5]} 22. Qd3 {[%clk
0:01:48.8]} 22... Qb4 {[%clk 0:00:57.1]} 23. Rhe1 {[%clk 0:01:42.1]} 23... a5
{[%clk 0:00:52.5]} 24. a3 {[%clk 0:01:36.1]} 24... Qf4 {[%clk 0:00:50.4]} 25. g3
{[%clk 0:01:32]} 25... Qf3+ {[%clk 0:00:36.7]} 26. Qxf3 {[%clk 0:01:23.8]} 1-0

[Event "*** Titled Tuesday 3|2 Blitz"]
[Site "Chess.com"]
[Date "2017.05.02"]
[Round "7"]
[White "Noukii"]
[Black "GrigorGrigorov"]
[Result "0-1"]
[WhiteElo "2627"]
[BlackElo "2522"]
[TimeControl "180+2"]
[EndTime "14:32:26 PDT"]
[Termination "GrigorGrigorov won by resignation"]

1. d4 {[%clk 0:03:02]} 1... Nf6 {[%clk 0:02:59.8]} 2. c4 {[%clk 0:03:01.4]} 2...
e6 {[%clk 0:03:01]} 3. Nf3 {[%clk 0:03:03]} 3... b6 {[%clk 0:03:01.6]} 4. g3
{[%clk 0:03:04.4]} 4... Bb7 {[%clk 0:03:02.9]} 5. Bg2 {[%clk 0:03:05.4]} 5...
Be7 {[%clk 0:03:04.2]} 6. O-O {[%clk 0:03:06.1]} 6... O-O {[%clk 0:03:05.5]} 7.
Re1 {[%clk 0:03:07.8]} 7... Ne4 {[%clk 0:03:06.1]} 8. Nfd2 {[%clk 0:03:05.7]}
8... d5 {[%clk 0:03:07.2]} 9. Nc3 {[%clk 0:02:59.4]} 9... f5 {[%clk 0:03:07.6]}
10. Qb3 {[%clk 0:02:38.9]} 10... Nc6 {[%clk 0:03:04.1]} 11. e3 {[%clk
0:02:34.3]} 11... Nxd2 {[%clk 0:03:00.7]} 12. Bxd2 {[%clk 0:02:35.8]} 12... Na5
{[%clk 0:03:02.2]} 13. Qc2 {[%clk 0:02:35.3]} 13... Nxc4 {[%clk 0:03:02.9]} 14.
Rec1 {[%clk 0:02:32.7]} 14... Nd6 {[%clk 0:02:59.2]} 15. a4 {[%clk 0:02:30.8]}
15... c5 {[%clk 0:02:56.9]} 16. a5 {[%clk 0:02:29.2]} 16... c4 {[%clk
0:02:51.1]} 17. Ne2 {[%clk 0:02:25.6]} 17... b5 {[%clk 0:02:46.6]} 18. Bb4
{[%clk 0:02:18.9]} 18... a6 {[%clk 0:02:42.7]} 19. f3 {[%clk 0:02:09.3]} 19...
Qd7 {[%clk 0:02:39]} 20. Re1 {[%clk 0:02:02.2]} 20... Rf7 {[%clk 0:02:39.5]} 21.
Rad1 {[%clk 0:02:02.7]} 21... Raf8 {[%clk 0:02:37.3]} 22. Qc3 {[%clk 0:01:56.5]}
22... g5 {[%clk 0:02:37.3]} 23. Kf2 {[%clk 0:01:52]} 23... Nc8 {[%clk
0:02:27.9]} 24. Nc1 {[%clk 0:01:50.4]} 24... Na7 {[%clk 0:02:21.7]} 25. Bxe7
{[%clk 0:01:45.9]} 25... Qxe7 {[%clk 0:02:21.9]} 26. b4 {[%clk 0:01:47.7]} 26...
Nc6 {[%clk 0:02:04.8]} 27. Na2 {[%clk 0:01:48.6]} 27... Qf6 {[%clk 0:01:48.4]}
28. f4 {[%clk 0:01:49.6]} 28... Rg7 {[%clk 0:01:45.3]} 29. Bf3 {[%clk
0:01:47.5]} 29... Bc8 {[%clk 0:01:41.9]} 30. Qb2 {[%clk 0:01:47.2]} 30... Bd7
{[%clk 0:01:37.9]} 31. Nc3 {[%clk 0:01:47.8]} 31... Be8 {[%clk 0:01:37.2]} 32.
Rh1 {[%clk 0:01:39.4]} 32... Qh6 {[%clk 0:01:24.4]} 33. h4 {[%clk 0:01:40.3]}
33... gxf4 {[%clk 0:01:23.9]} 34. gxf4 {[%clk 0:01:31.1]} 34... Bh5 {[%clk
0:01:24]} 35. Rdg1 {[%clk 0:01:30]} 35... Bxf3 {[%clk 0:01:19.7]} 36. Kxf3
{[%clk 0:01:31.2]} 36... Rf7 {[%clk 0:01:12.1]} 37. Na2 {[%clk 0:01:27]} 37...
Qh5+ {[%clk 0:01:09.3]} 38. Kf2 {[%clk 0:01:28.3]} 38... Rxg1 {[%clk 0:01:04.9]}
39. Rxg1+ {[%clk 0:01:30.2]} 39... Rg7 {[%clk 0:01:05.8]} 40. Rxg7+ {[%clk
0:01:30.7]} 40... Kxg7 {[%clk 0:01:07.4]} 41. Kf1 {[%clk 0:01:27.7]} 41... Qxh4
{[%clk 0:00:56.7]} 0-1

[Event "*** Titled Tuesday 3|2 Blitz"]
[Site "Chess.com"]
[Date "2017.05.02"]
[Round "7"]
[White "ItalianMachine"]
[Black "IMVoja"]
[Result "1-0"]
[WhiteElo "2213"]
[BlackElo "2337"]
[TimeControl "180+2"]
[EndTime "14:32:31 PDT"]
[Termination "ItalianMachine won by resignation"]

1. e4 {[%clk 0:03:02]} 1... c6 {[%clk 0:03:00.6]} 2. d4 {[%clk 0:02:45.9]} 2...
d5 {[%clk 0:03:00.8]} 3. e5 {[%clk 0:02:47.2]} 3... Bf5 {[%clk 0:03:00.5]} 4.
Nc3 {[%clk 0:02:45.1]} 4... e6 {[%clk 0:03:01.2]} 5. g4 {[%clk 0:02:46]} 5...
Bg6 {[%clk 0:03:02]} 6. Nge2 {[%clk 0:02:47.6]} 6... c5 {[%clk 0:02:57.2]} 7.
Be3 {[%clk 0:02:41.2]} 7... h6 {[%clk 0:02:54.8]} 8. dxc5 {[%clk 0:02:37.4]}
8... Nc6 {[%clk 0:02:47.1]} 9. f4 {[%clk 0:02:38.1]} 9... Qa5 {[%clk 0:02:43.1]}
10. a3 {[%clk 0:02:32.3]} 10... d4 {[%clk 0:02:15.3]} 11. b4 {[%clk 0:02:30.3]}
11... Qd8 {[%clk 0:02:09.1]} 12. Nxd4 {[%clk 0:02:31.3]} 12... Nge7 {[%clk
0:02:03.8]} 13. Ndb5 {[%clk 0:02:18.5]} 13... Nd5 {[%clk 0:01:56.3]} 14. Nxd5
{[%clk 0:02:19.1]} 14... exd5 {[%clk 0:01:57]} 15. Bg2 {[%clk 0:01:58.4]} 15...
Be4 {[%clk 0:01:38.1]} 16. Bxe4 {[%clk 0:01:40.1]} 16... dxe4 {[%clk 0:01:38.8]}
17. Qe2 {[%clk 0:01:35.7]} 17... Qh4+ {[%clk 0:01:22.6]} 18. Bf2 {[%clk
0:01:36.3]} 18... Qh3 {[%clk 0:01:23.6]} 19. Nc7+ {[%clk 0:01:09.4]} 19... Kd7
{[%clk 0:01:20.1]} 20. Nxa8 {[%clk 0:01:10.3]} 20... Qc3+ {[%clk 0:01:19.9]} 21.
Qd2+ {[%clk 0:01:11.4]} 21... Qxd2+ {[%clk 0:01:17.2]} 22. Kxd2 {[%clk
0:01:12.4]} 22... Be7 {[%clk 0:01:18.7]} 23. Ke3 {[%clk 0:01:01.3]} 23... Rxa8
{[%clk 0:01:19.4]} 24. Kxe4 {[%clk 0:01:02.6]} 24... Ke8 {[%clk 0:01:19.9]} 25.
Rad1 {[%clk 0:01:02]} 25... a6 {[%clk 0:01:20.2]} 26. c3 {[%clk 0:01:01.6]}
26... g6 {[%clk 0:01:21]} 27. a4 {[%clk 0:01:02.1]} 27... Rc8 {[%clk 0:01:13.3]}
28. Rd5 {[%clk 0:01:02.4]} 28... Bf8 {[%clk 0:01:11.3]} 29. Rhd1 {[%clk
0:01:03.3]} 29... Be7 {[%clk 0:01:12.3]} 30. Rd7 {[%clk 0:01:03.7]} 30... Rb8
{[%clk 0:01:07.2]} 31. b5 {[%clk 0:01:04.5]} 31... axb5 {[%clk 0:01:07.1]} 32.
axb5 {[%clk 0:01:06.4]} 32... Na5 {[%clk 0:01:08.3]} 33. f5 {[%clk 0:01:00.8]}
33... gxf5+ {[%clk 0:01:08.1]} 34. gxf5 {[%clk 0:01:01.9]} 34... Rc8 {[%clk
0:01:04.5]} 35. f6 {[%clk 0:00:58.9]} 35... Bf8 {[%clk 0:01:03.7]} 36. c6 {[%clk
0:00:56.7]} 36... bxc6 {[%clk 0:01:03.8]} 37. Bb6 {[%clk 0:00:58.1]} 1-0

[Event "*** Titled Tuesday 3|2 Blitz"]
[Site "Chess.com"]
[Date "2017.05.02"]
[Round "7"]
[White "NewBornNow"]
[Black "Aygehovit1992"]
[Result "1-0"]
[WhiteElo "2561"]
[BlackElo "2516"]
[TimeControl "180+2"]
[EndTime "14:32:38 PDT"]
[Termination "NewBornNow won by resignation"]

1. e4 {[%clk 0:03:02]} 1... d6 {[%clk 0:02:58.9]} 2. d4 {[%clk 0:03:02.5]} 2...
g6 {[%clk 0:02:58.1]} 3. c4 {[%clk 0:03:01]} 3... Bg7 {[%clk 0:02:58.7]} 4. Nc3
{[%clk 0:03:02.1]} 4... e5 {[%clk 0:02:59.5]} 5. dxe5 {[%clk 0:03:01.9]} 5...
Bxe5 {[%clk 0:02:59.4]} 6. Nf3 {[%clk 0:03:01.4]} 6... Bg7 {[%clk 0:02:58.6]} 7.
Be2 {[%clk 0:02:57.9]} 7... Nc6 {[%clk 0:02:58.6]} 8. O-O {[%clk 0:02:58]} 8...
Nf6 {[%clk 0:02:58]} 9. c5 {[%clk 0:02:55.2]} 9... O-O {[%clk 0:02:49.4]} 10.
cxd6 {[%clk 0:02:55.7]} 10... cxd6 {[%clk 0:02:51.3]} 11. Bf4 {[%clk 0:02:56.5]}
11... Re8 {[%clk 0:02:47]} 12. Bc4 {[%clk 0:02:53.5]} 12... Be6 {[%clk
0:02:46.5]} 13. Bxe6 {[%clk 0:02:48.3]} 13... Rxe6 {[%clk 0:02:46.7]} 14. Ng5
{[%clk 0:02:48.5]} 14... Re8 {[%clk 0:02:47.5]} 15. Qb3 {[%clk 0:02:47.1]} 15...
Qe7 {[%clk 0:02:03.8]} 16. Rad1 {[%clk 0:02:43.3]} 16... Rad8 {[%clk 0:02:02.6]}
17. Bxd6 {[%clk 0:02:29.7]} 17... Rxd6 {[%clk 0:01:51.7]} 18. Rxd6 {[%clk
0:02:30.3]} 18... Qxd6 {[%clk 0:01:53.6]} 19. Qxf7+ {[%clk 0:02:27.9]} 19... Kh8
{[%clk 0:01:54.9]} 20. Qxe8+ {[%clk 0:02:24.3]} 20... Nxe8 {[%clk 0:01:56.8]}
21. Nf7+ {[%clk 0:02:25.4]} 21... Kg8 {[%clk 0:01:58.4]} 22. Nxd6 {[%clk
0:02:25.9]} 22... Nxd6 {[%clk 0:02:00.3]} 23. Rd1 {[%clk 0:02:05]} 23... Nc4
{[%clk 0:01:59.2]} 24. Rd7 {[%clk 0:02:00.8]} 24... Nxb2 {[%clk 0:01:58.8]} 25.
Nd5 {[%clk 0:02:00.1]} 25... Na5 {[%clk 0:01:10.9]} 26. f4 {[%clk 0:01:53.4]}
26... Nbc4 {[%clk 0:01:03.3]} 27. e5 {[%clk 0:01:51.1]} 27... Nb6 {[%clk
0:00:58]} 28. Nxb6 {[%clk 0:01:37]} 28... axb6 {[%clk 0:00:59.9]} 29. Kf2 {[%clk
0:01:34.6]} 29... Bf8 {[%clk 0:00:53.7]} 30. Kf3 {[%clk 0:01:33.4]} 30... Bc5
{[%clk 0:00:48.6]} 31. g4 {[%clk 0:01:33.4]} 31... b5 {[%clk 0:00:42.9]} 32. Ke4
{[%clk 0:01:29.9]} 32... b4 {[%clk 0:00:39.9]} 33. f5 {[%clk 0:01:28.7]} 33...
gxf5+ {[%clk 0:00:41.5]} 34. gxf5 {[%clk 0:01:29.7]} 34... b6 {[%clk 0:00:32.3]}
35. f6 {[%clk 0:01:27]} 35... b3 {[%clk 0:00:29.2]} 36. axb3 {[%clk 0:01:26.4]}
36... Nxb3 {[%clk 0:00:31.1]} 37. e6 {[%clk 0:01:26.9]} 1-0